[Event "Titled Tuesday Blitz May 10 Early 2022"]
[White "Beerdsen, Thomas"]
[Black "Mikhalsky, Vladimir"]
[WhiteFideId "1030108"]
[BlackFideId "14144352"]
[WhiteElo "2585"]
[BlackElo "2301"]
[Result "1-0"]
[Round "01"]
[TimeControl "180+1"]
[Date "2022.05.11"]
[WhiteClock "0:00:07"]
[BlackClock "0:00:00"]

1. e4 {[%clk 0:03:00]}  g6 {[%clk 0:02:50]} 2. d4 {[%clk 0:02:56]}  Bg7 {[%clk 0:02:47]} 3. Nf3 {[%clk 0:02:54]}  d6 {[%clk 0:02:46]} 4. Bc4 {[%clk 0:02:52]}  Nf6 {[%clk 0:02:41]} 5. Qe2 {[%clk 0:02:51]}  O-O {[%clk 0:02:40]} 6. O-O {[%clk 0:02:51]}  Nc6 {[%clk 0:02:38]} 7. Rd1 {[%clk 0:02:49]}  Bg4 {[%clk 0:02:36]} 8. c3 {[%clk 0:02:44]}  e5 {[%clk 0:02:31]} 9. h3 {[%clk 0:02:34]}  Bxf3 {[%clk 0:02:29]} 10. Qxf3 {[%clk 0:02:35]}  Nd7 {[%clk 0:02:16]} 11. Be3 {[%clk 0:02:30]}  Nb6 {[%clk 0:02:09]} 12. Bb5 {[%clk 0:02:23]}  a6 {[%clk 0:02:01]} 13. Bxc6 {[%clk 0:02:17]}  bxc6 {[%clk 0:02:01]} 14. Nd2 {[%clk 0:02:11]}  a5 {[%clk 0:01:47]} 15. dxe5 {[%clk 0:02:05]}  Bxe5 {[%clk 0:01:46]} 16. a4 {[%clk 0:01:55]}  Rb8 {[%clk 0:01:40]} 17. Qe2 {[%clk 0:01:49]}  Qc8 {[%clk 0:01:37]} 18. Rdb1 {[%clk 0:01:29]}  Re8 {[%clk 0:01:35]} 19. Ra3 {[%clk 0:01:26]}  c5 {[%clk 0:01:34]} 20. b4 {[%clk 0:01:23]}  Bxc3 {[%clk 0:01:24]} 21. Rxc3 {[%clk 0:01:07]}  axb4 {[%clk 0:01:24]} 22. Rcc1 {[%clk 0:01:05]}  Nxa4 {[%clk 0:01:23]} 23. Bh6 {[%clk 0:00:55]}  Nc3 {[%clk 0:01:21]} 24. Qf3 {[%clk 0:00:51]}  Qe6 {[%clk 0:01:17]} 25. Rxc3 {[%clk 0:00:37]}  bxc3 {[%clk 0:01:16]} 26. Rxb8 {[%clk 0:00:38]}  Rxb8 {[%clk 0:01:07]} 27. Qxc3 {[%clk 0:00:38]}  f6 {[%clk 0:01:06]} 28. Be3 {[%clk 0:00:37]}  Kf7 {[%clk 0:00:58]} 29. Qa5 {[%clk 0:00:37]}  Rb7 {[%clk 0:00:55]} 30. Qa8 {[%clk 0:00:37]}  Rb4 {[%clk 0:00:32]} 31. Qh8 {[%clk 0:00:35]}  Ke7 {[%clk 0:00:30]} 32. Qxh7+ {[%clk 0:00:35]}  Qf7 {[%clk 0:00:31]} 33. Qh8 {[%clk 0:00:34]}  Kd7 {[%clk 0:00:29]} 34. Qa8 {[%clk 0:00:30]}  Qe8 {[%clk 0:00:27]} 35. Qa1 {[%clk 0:00:27]}  Qe6 {[%clk 0:00:27]} 36. Qc3 {[%clk 0:00:17]}  Qe5 {[%clk 0:00:26]} 37. Qd3 {[%clk 0:00:16]}  Qe6 {[%clk 0:00:24]} 38. Bxc5 {[%clk 0:00:16]}  Rb2 {[%clk 0:00:23]} 39. Be3 {[%clk 0:00:15]}  Qa2 {[%clk 0:00:22]} 40. Nf3 {[%clk 0:00:14]}  Qb1+ {[%clk 0:00:20]} 41. Qxb1 {[%clk 0:00:14]}  Rxb1+ {[%clk 0:00:20]} 42. Kh2 {[%clk 0:00:15]}  Ke6 {[%clk 0:00:20]} 43. g4 {[%clk 0:00:15]}  c5 {[%clk 0:00:19]} 44. Nd2 {[%clk 0:00:15]}  Rd1 {[%clk 0:00:18]} 45. h4 {[%clk 0:00:15]}  d5 {[%clk 0:00:18]} 46. exd5+ {[%clk 0:00:14]}  Kxd5 {[%clk 0:00:18]} 47. h5 {[%clk 0:00:15]}  gxh5 {[%clk 0:00:18]} 48. gxh5 {[%clk 0:00:16]}  c4 {[%clk 0:00:18]} 49. h6 {[%clk 0:00:16]}  Ra1 {[%clk 0:00:17]} 50. Kg3 {[%clk 0:00:10]}  Ra8 {[%clk 0:00:16]} 51. Kg4 {[%clk 0:00:09]}  c3 {[%clk 0:00:17]} 52. Nf3 {[%clk 0:00:09]}  c2 {[%clk 0:00:16]} 53. Kf5 {[%clk 0:00:09]}  Re8 {[%clk 0:00:14]} 54. Bf4 {[%clk 0:00:06]}  Kc4 {[%clk 0:00:12]} 55. h7 {[%clk 0:00:06]}  Kd3 {[%clk 0:00:11]} 56. Kxf6 {[%clk 0:00:06]}  Rf8+ {[%clk 0:00:11]} 57. Kg5 {[%clk 0:00:02]}  Rxf4 {[%clk 0:00:11]} 58. h8=Q {[%clk 0:00:03]}  c1=Q {[%clk 0:00:08]} 59. Ne5+ {[%clk 0:00:03]}  Ke4 {[%clk 0:00:06]} 60. Qa8+ {[%clk 0:00:01]}  Kxe5 {[%clk 0:00:06]} 61. Qb8+ {[%clk 0:00:02]}  Kd5 {[%clk 0:00:05]} 62. Qxf4 {[%clk 0:00:02]}  Qg1+ {[%clk 0:00:04]} 63. Qg4 {[%clk 0:00:03]}  Qxf2 {[%clk 0:00:04]} 64. Qd7+ {[%clk 0:00:03]}  Ke4 {[%clk 0:00:03]} 65. Qc6+ {[%clk 0:00:03]}  Ke3 {[%clk 0:00:03]} 66. Qc5+ {[%clk 0:00:03]}  Ke2 {[%clk 0:00:03]} 67. Qc2+ {[%clk 0:00:04]}  Kf3 {[%clk 0:00:03]} 68. Qd1+ {[%clk 0:00:03]}  Kg2 {[%clk 0:00:03]} 69. Kg4 {[%clk 0:00:03]}  Kh2 {[%clk 0:00:03]} 70. Qd6+ {[%clk 0:00:02]}  Kg2 {[%clk 0:00:03]} 71. Qc6+ {[%clk 0:00:03]}  Kh2 {[%clk 0:00:03]} 72. Qc7+ {[%clk 0:00:03]}  Kg2 {[%clk 0:00:03]} 73. Qb7+ {[%clk 0:00:04]}  Kh2 {[%clk 0:00:02]} 74. Qh7+ {[%clk 0:00:05]}  Kg2 {[%clk 0:00:02]} 75. Qh3+ {[%clk 0:00:05]}  Kg1 {[%clk 0:00:01]} 76. Qb3 {[%clk 0:00:06]}  Qg2+ {[%clk 0:00:01]} 77. Kh4 {[%clk 0:00:06]}  Qh2+ {[%clk 0:00:00]} 78. Kg4 {[%clk 0:00:07]} 1-0


[Site "https://www.chess.com"]

[Event "Titled Tuesday Blitz May 10 Early 2022"]
[White "Bettalli, Francesco"]
[Black "Cabarkapa, Novak"]
[WhiteFideId "2816453"]
[BlackFideId "943746"]
[WhiteElo "2216"]
[BlackElo "2454"]
[Result "1/2-1/2"]
[Round "01"]
[TimeControl "180+1"]
[Date "2022.05.11"]
[WhiteClock "0:02:05"]
[BlackClock "0:00:24"]

1. d4 {[%clk 0:02:59]}  Nf6 {[%clk 0:02:59]} 2. Nc3 {[%clk 0:02:56]}  d5 {[%clk 0:02:58]} 3. Bf4 {[%clk 0:02:55]}  e6 {[%clk 0:02:58]} 4. Nb5 {[%clk 0:02:54]}  Na6 {[%clk 0:02:58]} 5. e3 {[%clk 0:02:54]}  Be7 {[%clk 0:02:58]} 6. Nf3 {[%clk 0:02:52]}  O-O {[%clk 0:02:57]} 7. Bd3 {[%clk 0:02:52]}  c6 {[%clk 0:02:55]} 8. Nc3 {[%clk 0:02:52]}  Qb6 {[%clk 0:02:54]} 9. O-O {[%clk 0:02:50]}  c5 {[%clk 0:02:53]} 10. Na4 {[%clk 0:02:47]}  Qa5 {[%clk 0:02:43]} 11. Nxc5 {[%clk 0:02:45]}  Nxc5 {[%clk 0:02:42]} 12. dxc5 {[%clk 0:02:46]}  Qxc5 {[%clk 0:02:39]} 13. c3 {[%clk 0:02:45]}  h6 {[%clk 0:02:36]} 14. Ne5 {[%clk 0:02:39]}  Nd7 {[%clk 0:02:33]} 15. Nxd7 {[%clk 0:02:39]}  Bxd7 {[%clk 0:02:34]} 16. Bxh6 {[%clk 0:02:26]}  gxh6 {[%clk 0:02:23]} 17. Qg4+ {[%clk 0:02:27]}  Kh8 {[%clk 0:01:09]} 18. Qh5 {[%clk 0:02:22]}  f5 {[%clk 0:00:22]} 19. Qxh6+ {[%clk 0:02:20]}  Kg8 {[%clk 0:00:22]} 20. Qg6+ {[%clk 0:02:20]}  Kh8 {[%clk 0:00:23]} 21. Qh6+ {[%clk 0:02:15]}  Kg8 {[%clk 0:00:23]} 22. Qg6+ {[%clk 0:02:08]}  Kh8 {[%clk 0:00:24]} 23. Qh6+ {[%clk 0:02:05]} 1/2-1/2


[Site "https://www.chess.com"]

[Event "Titled Tuesday Blitz May 10 Early 2022"]
[White "Bilych, Olexiy"]
[Black "Czerw, Dawid"]
[WhiteFideId "14156504"]
[BlackFideId "1145746"]
[WhiteElo "2176"]
[BlackElo "2125"]
[Result "1-0"]
[Round "01"]
[TimeControl "180+1"]
[Date "2022.05.11"]
[WhiteClock "0:00:18"]
[BlackClock "0:00:07"]

1. e4 {[%clk 0:02:59]}  c5 {[%clk 0:02:59]} 2. Nf3 {[%clk 0:02:59]}  g6 {[%clk 0:02:59]} 3. d4 {[%clk 0:02:58]}  cxd4 {[%clk 0:03:00]} 4. Nxd4 {[%clk 0:02:59]}  Nc6 {[%clk 0:03:00]} 5. c4 {[%clk 0:02:55]}  Nf6 {[%clk 0:02:59]} 6. Nc3 {[%clk 0:02:56]}  d6 {[%clk 0:03:00]} 7. Be2 {[%clk 0:02:56]}  Nxd4 {[%clk 0:03:00]} 8. Qxd4 {[%clk 0:02:57]}  Bg7 {[%clk 0:03:00]} 9. Be3 {[%clk 0:02:56]}  O-O {[%clk 0:03:00]} 10. Qd2 {[%clk 0:02:56]}  a5 {[%clk 0:02:59]} 11. O-O {[%clk 0:02:53]}  a4 {[%clk 0:02:59]} 12. Bd4 {[%clk 0:02:53]}  Be6 {[%clk 0:02:57]} 13. Qe3 {[%clk 0:02:46]}  Nd7 {[%clk 0:02:52]} 14. f4 {[%clk 0:02:12]}  Bxd4 {[%clk 0:02:44]} 15. Qxd4 {[%clk 0:02:13]}  Qb6 {[%clk 0:02:44]} 16. Qxb6 {[%clk 0:02:12]}  Nxb6 {[%clk 0:02:45]} 17. Nd5 {[%clk 0:02:11]}  Bxd5 {[%clk 0:02:37]} 18. cxd5 {[%clk 0:02:12]}  Nd7 {[%clk 0:02:25]} 19. Rac1 {[%clk 0:02:03]}  Nc5 {[%clk 0:02:09]} 20. e5 {[%clk 0:02:03]}  Rfc8 {[%clk 0:01:56]} 21. Rc2 {[%clk 0:01:47]}  f5 {[%clk 0:01:25]} 22. Rfc1 {[%clk 0:01:32]}  Rcb8 {[%clk 0:01:19]} 23. Kf2 {[%clk 0:01:24]}  b5 {[%clk 0:01:18]} 24. Ke3 {[%clk 0:01:24]}  b4 {[%clk 0:01:17]} 25. Rxc5 {[%clk 0:00:59]}  dxc5 {[%clk 0:01:16]} 26. Rxc5 {[%clk 0:01:00]}  b3 {[%clk 0:00:55]} 27. a3 {[%clk 0:01:00]}  Rc8 {[%clk 0:00:55]} 28. Rc6 {[%clk 0:01:00]}  Rxc6 {[%clk 0:00:36]} 29. dxc6 {[%clk 0:01:01]}  Kf7 {[%clk 0:00:36]} 30. Kd4 {[%clk 0:01:00]}  Ke8 {[%clk 0:00:33]} 31. Kc5 {[%clk 0:00:51]}  Kd8 {[%clk 0:00:32]} 32. Bb5 {[%clk 0:00:45]}  Kc7 {[%clk 0:00:29]} 33. Kb4 {[%clk 0:00:44]}  Rd8 {[%clk 0:00:23]} 34. Kxa4 {[%clk 0:00:41]}  Rd4+ {[%clk 0:00:19]} 35. Kxb3 {[%clk 0:00:41]}  Rxf4 {[%clk 0:00:20]} 36. a4 {[%clk 0:00:42]}  Re4 {[%clk 0:00:19]} 37. a5 {[%clk 0:00:38]}  Rxe5 {[%clk 0:00:19]} 38. Kc4 {[%clk 0:00:39]}  Re4+ {[%clk 0:00:19]} 39. Kc5 {[%clk 0:00:39]}  Re5+ {[%clk 0:00:19]} 40. Kc4 {[%clk 0:00:39]}  Re4+ {[%clk 0:00:19]} 41. Kd5 {[%clk 0:00:36]}  Rb4 {[%clk 0:00:18]} 42. Kc5 {[%clk 0:00:34]}  Rxb2 {[%clk 0:00:19]} 43. a6 {[%clk 0:00:35]}  Ra2 {[%clk 0:00:18]} 44. g3 {[%clk 0:00:35]}  e5 {[%clk 0:00:18]} 45. Kd5 {[%clk 0:00:35]}  e4 {[%clk 0:00:19]} 46. Kd4 {[%clk 0:00:36]}  Ra5 {[%clk 0:00:19]} 47. Kc4 {[%clk 0:00:31]}  e3 {[%clk 0:00:19]} 48. Kb4 {[%clk 0:00:32]}  Ra1 {[%clk 0:00:19]} 49. Kc3 {[%clk 0:00:29]}  Kb6 {[%clk 0:00:19]} 50. Kd3 {[%clk 0:00:27]}  Ra3+ {[%clk 0:00:15]} 51. Ke2 {[%clk 0:00:27]}  Rb3 {[%clk 0:00:08]} 52. Bc4 {[%clk 0:00:23]}  Rb2+ {[%clk 0:00:08]} 53. Kxe3 {[%clk 0:00:23]}  Kxc6 {[%clk 0:00:09]} 54. h4 {[%clk 0:00:23]}  Rb1 {[%clk 0:00:07]} 55. Bg8 {[%clk 0:00:21]}  h6 {[%clk 0:00:05]} 56. Bh7 {[%clk 0:00:22]}  g5 {[%clk 0:00:05]} 57. hxg5 {[%clk 0:00:21]}  hxg5 {[%clk 0:00:06]} 58. Bxf5 {[%clk 0:00:21]}  Rb3+ {[%clk 0:00:06]} 59. Bd3 {[%clk 0:00:19]}  Kd6 {[%clk 0:00:06]} 60. Kd4 {[%clk 0:00:19]}  Rb4+ {[%clk 0:00:06]} 61. Kc3 {[%clk 0:00:19]}  Ra4 {[%clk 0:00:06]} 62. Bb5 {[%clk 0:00:17]}  Ra5 {[%clk 0:00:06]} 63. Kb4 {[%clk 0:00:17]}  Ra1 {[%clk 0:00:05]} 64. Ba4 {[%clk 0:00:18]}  Rb1+ {[%clk 0:00:06]} 65. Ka5 {[%clk 0:00:18]}  Rb8 {[%clk 0:00:06]} 66. a7 {[%clk 0:00:18]}  Ra8 {[%clk 0:00:07]} 67. Kb6 {[%clk 0:00:19]}  Ke5 {[%clk 0:00:07]} 68. Bc6 {[%clk 0:00:19]}  Rg8 {[%clk 0:00:06]} 69. a8=Q {[%clk 0:00:19]}  Rxa8 {[%clk 0:00:07]} 70. Bxa8 {[%clk 0:00:19]}  g4 {[%clk 0:00:07]} 71. Kc5 {[%clk 0:00:18]} 1-0


[Site "https://www.chess.com"]

[Event "Titled Tuesday Blitz May 10 Early 2022"]
[White "Bintang, Rasyid A. Hidayat"]
[Black "Darini, Pouria"]
[WhiteFideId "7105355"]
[BlackFideId "12502200"]
[WhiteElo "2429"]
[BlackElo "2483"]
[Result "1-0"]
[Round "01"]
[TimeControl "180+1"]
[Date "2022.05.11"]
[WhiteClock "0:00:19"]
[BlackClock "0:00:01"]

1. d4 {[%clk 0:02:59]}  Nf6 {[%clk 0:02:57]} 2. Bf4 {[%clk 0:02:54]}  g6 {[%clk 0:02:53]} 3. Nc3 {[%clk 0:02:53]}  d5 {[%clk 0:02:52]} 4. e3 {[%clk 0:02:54]}  Bg7 {[%clk 0:02:50]} 5. h4 {[%clk 0:02:54]}  h5 {[%clk 0:02:49]} 6. Nf3 {[%clk 0:02:54]}  Bg4 {[%clk 0:02:47]} 7. Be2 {[%clk 0:02:54]}  Bxf3 {[%clk 0:02:39]} 8. Bxf3 {[%clk 0:02:55]}  c6 {[%clk 0:02:40]} 9. O-O {[%clk 0:02:54]}  Nbd7 {[%clk 0:02:38]} 10. g3 {[%clk 0:02:52]}  O-O {[%clk 0:02:37]} 11. e4 {[%clk 0:02:52]}  dxe4 {[%clk 0:02:34]} 12. Nxe4 {[%clk 0:02:52]}  Nxe4 {[%clk 0:02:33]} 13. Bxe4 {[%clk 0:02:52]}  e5 {[%clk 0:02:31]} 14. dxe5 {[%clk 0:02:50]}  Nxe5 {[%clk 0:02:32]} 15. c3 {[%clk 0:02:33]}  Qb6 {[%clk 0:02:02]} 16. Qc2 {[%clk 0:02:32]}  Rfe8 {[%clk 0:01:56]} 17. Bg2 {[%clk 0:02:29]}  Nc4 {[%clk 0:01:42]} 18. b3 {[%clk 0:02:13]}  Na3 {[%clk 0:01:42]} 19. Qb2 {[%clk 0:02:13]}  Nb5 {[%clk 0:01:41]} 20. Rac1 {[%clk 0:02:10]}  Qc5 {[%clk 0:01:34]} 21. b4 {[%clk 0:01:56]}  Qc4 {[%clk 0:01:29]} 22. Bd2 {[%clk 0:01:37]}  a5 {[%clk 0:01:09]} 23. a4 {[%clk 0:01:35]}  Nd6 {[%clk 0:00:51]} 24. Bf4 {[%clk 0:01:32]}  Ne4 {[%clk 0:00:23]} 25. Bxe4 {[%clk 0:01:20]}  Rxe4 {[%clk 0:00:22]} 26. bxa5 {[%clk 0:01:20]}  Rxf4 {[%clk 0:00:23]} 27. Qxb7 {[%clk 0:01:15]}  Re8 {[%clk 0:00:10]} 28. a6 {[%clk 0:01:03]}  Rxh4 {[%clk 0:00:04]} 29. Rfe1 {[%clk 0:00:45]}  Rxe1+ {[%clk 0:00:01]} 30. Rxe1 {[%clk 0:00:46]}  Qxc3 {[%clk 0:00:02]} 31. Qb1 {[%clk 0:00:20]}  Qa5 {[%clk 0:00:01]} 32. Re8+ {[%clk 0:00:19]} 1-0


[Site "https://www.chess.com"]

[Event "Titled Tuesday Blitz May 10 Early 2022"]
[White "Ceres, Dragos"]
[Black "Zanette, Edgard Vinicius"]
[WhiteFideId "13905864"]
[BlackFideId "2109263"]
[WhiteElo "2150"]
[BlackElo "2182"]
[Result "1/2-1/2"]
[Round "01"]
[TimeControl "180+1"]
[Date "2022.05.11"]
[WhiteClock "0:00:27"]
[BlackClock "0:00:20"]

1. e4 {[%clk 0:03:00]}  e5 {[%clk 0:02:40]} 2. Nf3 {[%clk 0:03:00]}  Nc6 {[%clk 0:02:39]} 3. Bc4 {[%clk 0:03:00]}  Bc5 {[%clk 0:02:39]} 4. c3 {[%clk 0:03:00]}  Nf6 {[%clk 0:02:39]} 5. d3 {[%clk 0:03:00]}  d6 {[%clk 0:02:38]} 6. O-O {[%clk 0:03:00]}  a6 {[%clk 0:02:38]} 7. a4 {[%clk 0:03:00]}  Ba7 {[%clk 0:02:37]} 8. b4 {[%clk 0:02:56]}  Be6 {[%clk 0:02:34]} 9. Na3 {[%clk 0:02:53]}  h6 {[%clk 0:02:27]} 10. Qb3 {[%clk 0:02:50]}  Bxc4 {[%clk 0:02:24]} 11. Nxc4 {[%clk 0:02:51]}  O-O {[%clk 0:02:23]} 12. Be3 {[%clk 0:02:49]}  Bxe3 {[%clk 0:02:20]} 13. fxe3 {[%clk 0:02:50]}  b5 {[%clk 0:02:09]} 14. Ncd2 {[%clk 0:02:43]}  Rb8 {[%clk 0:02:05]} 15. axb5 {[%clk 0:02:39]}  axb5 {[%clk 0:02:05]} 16. Ra6 {[%clk 0:02:37]}  Qd7 {[%clk 0:02:04]} 17. Nh4 {[%clk 0:02:29]}  Ne7 {[%clk 0:01:54]} 18. Qd1 {[%clk 0:02:24]}  Qg4 {[%clk 0:01:50]} 19. Qe1 {[%clk 0:02:17]}  Ra8 {[%clk 0:01:43]} 20. Rxa8 {[%clk 0:02:15]}  Rxa8 {[%clk 0:01:42]} 21. h3 {[%clk 0:02:04]}  Qe6 {[%clk 0:01:29]} 22. Qg3 {[%clk 0:01:57]}  Ra2 {[%clk 0:01:24]} 23. Rf2 {[%clk 0:01:47]}  Rc2 {[%clk 0:00:53]} 24. d4 {[%clk 0:01:24]}  exd4 {[%clk 0:00:47]} 25. exd4 {[%clk 0:01:18]}  Nxe4 {[%clk 0:00:45]} 26. Nxe4 {[%clk 0:01:18]}  Qxe4 {[%clk 0:00:45]} 27. Rxc2 {[%clk 0:01:12]}  Qxc2 {[%clk 0:00:44]} 28. Qe3 {[%clk 0:01:13]}  Kf8 {[%clk 0:00:38]} 29. Qf3 {[%clk 0:00:38]}  d5 {[%clk 0:00:35]} 30. Qg3 {[%clk 0:00:32]}  Qc1+ {[%clk 0:00:25]} 31. Kh2 {[%clk 0:00:33]}  g5 {[%clk 0:00:19]} 32. Qxc7 {[%clk 0:00:28]}  gxh4 {[%clk 0:00:19]} 33. Qd8+ {[%clk 0:00:28]}  Kg7 {[%clk 0:00:20]} 34. Qxe7 {[%clk 0:00:29]}  Qf4+ {[%clk 0:00:20]} 35. Kg1 {[%clk 0:00:29]}  Qc1+ {[%clk 0:00:20]} 36. Kh2 {[%clk 0:00:27]}  Qf4+ {[%clk 0:00:20]} 37. Kg1 {[%clk 0:00:27]}  Qc1+ {[%clk 0:00:20]} 38. Kh2 {[%clk 0:00:27]} 1/2-1/2


[Site "https://www.chess.com"]

[Event "Titled Tuesday Blitz May 10 Early 2022"]
[White "Chernomordik, Pavel"]
[Black "Meshkovs, Nikita"]
[WhiteFideId "2804530"]
[BlackFideId "11602740"]
[WhiteElo "2220"]
[BlackElo "2506"]
[Result "0-1"]
[Round "01"]
[TimeControl "180+1"]
[Date "2022.05.11"]
[WhiteClock "0:00:50"]
[BlackClock "0:01:24"]

1. e4 {[%clk 0:03:00]}  c5 {[%clk 0:02:59]} 2. Nc3 {[%clk 0:03:00]}  e6 {[%clk 0:02:56]} 3. f4 {[%clk 0:02:58]}  d5 {[%clk 0:02:57]} 4. Nf3 {[%clk 0:02:56]}  d4 {[%clk 0:02:55]} 5. Bb5+ {[%clk 0:02:55]}  Bd7 {[%clk 0:02:54]} 6. Bxd7+ {[%clk 0:02:55]}  Nxd7 {[%clk 0:02:50]} 7. Ne2 {[%clk 0:02:56]}  Bd6 {[%clk 0:02:50]} 8. d3 {[%clk 0:02:52]}  Ne7 {[%clk 0:02:51]} 9. O-O {[%clk 0:02:49]}  O-O {[%clk 0:02:34]} 10. Ng3 {[%clk 0:02:46]}  f6 {[%clk 0:02:26]} 11. Nh4 {[%clk 0:02:39]}  Qe8 {[%clk 0:02:13]} 12. Qg4 {[%clk 0:02:32]}  Qf7 {[%clk 0:02:11]} 13. f5 {[%clk 0:02:21]}  e5 {[%clk 0:02:03]} 14. Nh5 {[%clk 0:02:18]}  Kh8 {[%clk 0:02:01]} 15. Ng3 {[%clk 0:01:58]}  c4 {[%clk 0:02:00]} 16. Bd2 {[%clk 0:01:55]}  cxd3 {[%clk 0:01:54]} 17. cxd3 {[%clk 0:01:55]}  Rac8 {[%clk 0:01:55]} 18. Rfc1 {[%clk 0:01:54]}  Nc5 {[%clk 0:01:53]} 19. Qe2 {[%clk 0:01:50]}  Na4 {[%clk 0:01:51]} 20. b3 {[%clk 0:01:27]}  Nc3 {[%clk 0:01:49]} 21. Qe1 {[%clk 0:01:25]}  Ba3 {[%clk 0:01:41]} 22. Rc2 {[%clk 0:01:23]}  Nc6 {[%clk 0:01:40]} 23. Bc1 {[%clk 0:01:12]}  Nb4 {[%clk 0:01:32]} 24. Rd2 {[%clk 0:01:12]}  Bxc1 {[%clk 0:01:29]} 25. Rxc1 {[%clk 0:01:09]}  Ncxa2 {[%clk 0:01:28]} 26. Rc4 {[%clk 0:01:02]}  b5 {[%clk 0:01:28]} 27. Rxc8 {[%clk 0:00:57]}  Rxc8 {[%clk 0:01:29]} 28. Rd1 {[%clk 0:00:53]}  Qxb3 {[%clk 0:01:23]} 29. Qf1 {[%clk 0:00:51]}  Qxd1 {[%clk 0:01:23]} 30. Qxd1 {[%clk 0:00:50]}  Rc1 {[%clk 0:01:24]} 0-1


[Site "https://www.chess.com"]

[Event "Titled Tuesday Blitz May 10 Early 2022"]
[White "Dang, Hoang Son"]
[Black "Friedel, Tom"]
[WhiteFideId "12402435"]
[BlackFideId "2002108"]
[WhiteElo "2252"]
[BlackElo "2317"]
[Result "1-0"]
[Round "01"]
[TimeControl "180+1"]
[Date "2022.05.11"]
[WhiteClock "0:00:20"]
[BlackClock "0:00:20"]

1. d4 {[%clk 0:03:00]}  d5 {[%clk 0:02:59]} 2. Bf4 {[%clk 0:03:01]}  e6 {[%clk 0:02:59]} 3. e3 {[%clk 0:03:02]}  Bd6 {[%clk 0:02:59]} 4. Bg3 {[%clk 0:03:00]}  Bxg3 {[%clk 0:02:58]} 5. hxg3 {[%clk 0:03:00]}  Nf6 {[%clk 0:02:59]} 6. Nf3 {[%clk 0:03:00]}  Nbd7 {[%clk 0:02:59]} 7. Bd3 {[%clk 0:03:01]}  Qe7 {[%clk 0:02:59]} 8. Nbd2 {[%clk 0:03:01]}  e5 {[%clk 0:02:52]} 9. dxe5 {[%clk 0:03:01]}  Nxe5 {[%clk 0:02:52]} 10. Nxe5 {[%clk 0:03:01]}  Qxe5 {[%clk 0:02:53]} 11. c3 {[%clk 0:03:02]}  Bg4 {[%clk 0:02:49]} 12. Qa4+ {[%clk 0:03:02]}  Bd7 {[%clk 0:02:45]} 13. Qb4 {[%clk 0:03:02]}  O-O-O {[%clk 0:02:43]} 14. O-O-O {[%clk 0:03:00]}  h6 {[%clk 0:02:39]} 15. Nf3 {[%clk 0:02:59]}  Qe6 {[%clk 0:02:29]} 16. Bc2 {[%clk 0:02:57]}  Rhe8 {[%clk 0:02:23]} 17. Rh4 {[%clk 0:02:46]}  Ne4 {[%clk 0:02:21]} 18. Nd4 {[%clk 0:02:40]}  Qb6 {[%clk 0:02:20]} 19. Qxb6 {[%clk 0:02:34]}  axb6 {[%clk 0:02:20]} 20. Bxe4 {[%clk 0:02:35]}  dxe4 {[%clk 0:02:11]} 21. b3 {[%clk 0:02:18]}  c5 {[%clk 0:02:07]} 22. Ne2 {[%clk 0:02:17]}  Bf5 {[%clk 0:01:51]} 23. Rxd8+ {[%clk 0:02:02]}  Rxd8 {[%clk 0:01:47]} 24. Rf4 {[%clk 0:02:00]}  Bg6 {[%clk 0:01:40]} 25. g4 {[%clk 0:02:00]}  Kc7 {[%clk 0:01:35]} 26. Ng3 {[%clk 0:01:57]}  Re8 {[%clk 0:01:35]} 27. c4 {[%clk 0:01:46]}  Kd6 {[%clk 0:01:32]} 28. Kc2 {[%clk 0:01:35]}  Ke5 {[%clk 0:01:30]} 29. Kc3 {[%clk 0:01:34]}  Ra8 {[%clk 0:01:30]} 30. a4 {[%clk 0:01:33]}  Rd8 {[%clk 0:01:29]} 31. Nh5 {[%clk 0:01:20]}  Bxh5 {[%clk 0:01:20]} 32. gxh5 {[%clk 0:01:21]}  Rd3+ {[%clk 0:01:16]} 33. Kc2 {[%clk 0:01:21]}  f5 {[%clk 0:01:16]} 34. g4 {[%clk 0:01:19]}  fxg4 {[%clk 0:01:10]} 35. Rxg4 {[%clk 0:01:20]}  Rd7 {[%clk 0:01:10]} 36. Rg6 {[%clk 0:01:06]}  Rf7 {[%clk 0:01:10]} 37. Rg2 {[%clk 0:01:03]}  Rd7 {[%clk 0:01:04]} 38. b4 {[%clk 0:00:57]}  Kf5 {[%clk 0:00:54]} 39. b5 {[%clk 0:00:52]}  Ke5 {[%clk 0:00:41]} 40. Rg6 {[%clk 0:00:51]}  Rf7 {[%clk 0:00:37]} 41. Rg2 {[%clk 0:00:35]}  Rd7 {[%clk 0:00:32]} 42. Rg6 {[%clk 0:00:35]}  Rf7 {[%clk 0:00:32]} 43. Rxb6 {[%clk 0:00:36]}  Rxf2+ {[%clk 0:00:32]} 44. Kc1 {[%clk 0:00:29]}  Rf3 {[%clk 0:00:32]} 45. Rxb7 {[%clk 0:00:27]}  Rxe3 {[%clk 0:00:32]} 46. a5 {[%clk 0:00:27]}  Kd4 {[%clk 0:00:32]} 47. Rd7+ {[%clk 0:00:24]}  Kc3 {[%clk 0:00:32]} 48. b6 {[%clk 0:00:23]}  Re1+ {[%clk 0:00:25]} 49. Rd1 {[%clk 0:00:22]}  Re2 {[%clk 0:00:25]} 50. b7 {[%clk 0:00:21]}  Ra2 {[%clk 0:00:20]} 51. b8=Q {[%clk 0:00:20]} 1-0


[Site "https://www.chess.com"]

[Event "Titled Tuesday Blitz May 10 Early 2022"]
[White "De Arruda, Leandro Formes"]
[Black "Krstulovic, Alex"]
[WhiteFideId "22722009"]
[BlackFideId "760056"]
[WhiteElo "1852"]
[BlackElo "2193"]
[Result "0-1"]
[Round "01"]
[TimeControl "180+1"]
[Date "2022.05.11"]
[WhiteClock "0:01:10"]
[BlackClock "0:02:13"]

1. d4 {[%clk 0:03:00]}  Nf6 {[%clk 0:02:59]} 2. Nf3 {[%clk 0:03:00]}  d5 {[%clk 0:02:59]} 3. e3 {[%clk 0:03:00]}  b6 {[%clk 0:02:59]} 4. Bd3 {[%clk 0:03:00]}  Bb7 {[%clk 0:02:59]} 5. Nbd2 {[%clk 0:03:01]}  Nbd7 {[%clk 0:02:58]} 6. O-O {[%clk 0:03:01]}  e6 {[%clk 0:02:56]} 7. b3 {[%clk 0:03:01]}  Bd6 {[%clk 0:02:56]} 8. Bb2 {[%clk 0:03:01]}  O-O {[%clk 0:02:56]} 9. Ne5 {[%clk 0:03:01]}  Ne4 {[%clk 0:02:55]} 10. f3 {[%clk 0:03:01]}  Nxd2 {[%clk 0:02:51]} 11. Qxd2 {[%clk 0:03:02]}  f6 {[%clk 0:02:52]} 12. Nxd7 {[%clk 0:02:58]}  Qxd7 {[%clk 0:02:53]} 13. e4 {[%clk 0:02:55]}  dxe4 {[%clk 0:02:50]} 14. fxe4 {[%clk 0:02:56]}  f5 {[%clk 0:02:50]} 15. exf5 {[%clk 0:02:36]}  exf5 {[%clk 0:02:50]} 16. Qg5 {[%clk 0:02:23]}  Rae8 {[%clk 0:02:47]} 17. Bxf5 {[%clk 0:02:03]}  Qc6 {[%clk 0:02:36]} 18. Kh1 {[%clk 0:01:35]}  Re7 {[%clk 0:02:20]} 19. d5 {[%clk 0:01:31]}  Qxd5 {[%clk 0:02:18]} 20. Bxh7+ {[%clk 0:01:27]}  Kxh7 {[%clk 0:02:17]} 21. Qxd5 {[%clk 0:01:27]}  Bxd5 {[%clk 0:02:16]} 22. Rxf8 {[%clk 0:01:27]}  Re2 {[%clk 0:02:16]} 23. Rg1 {[%clk 0:01:10]}  Bxf8 {[%clk 0:02:13]} 0-1


[Site "https://www.chess.com"]